fUSD/lending_fUSD_20250512
["ID","MTS","AMOUNT","RATE_DAILY","PERIOD"]
[360810759,1747034138466,-546.84,0.000171,14]
[360810760,1747034172260,150.0,0.00028,120]
[360810761,1747034176970,-300.0,0.0002,14]
[360810762,1747034177786,150.0,0.00028,120]
[360810764,1747034218503,200.0,0.000137,5]
[360810765,1747034220594,200.0,0.000138,5]
[360810766,1747034222689,200.0,0.000139,5]
[360810767,1747034239296,500.0,0.000145,5]
[360810771,1747034532899,576.06,0.00010637,2]
[360810772,1747034568927,182.51928359,0.00012501,2]
[360810773,1747034590300,150.0,0.00028,120]
[360810774,1747034591737,150.0,0.00028,120]
[360810775,1747034596501,81.25206053,0.00012561,2]
[360810776,1747034596982,150.0,0.00028,120]
[360810777,1747034597792,500.0,0.00028,120]
[360810778,1747034636323,-168.74793947,0.00012561,2]
[360810780,1747034679614,-387.60497734,0.00012555,2]
[360810781,1747034687092,-170.50786954,0.00012555,2]
[360810782,1747034696353,-29.43715312,0.00012555,2]
[360810783,1747034725935,762.50865173,0.000108,2]
[360810784,1747034754438,503.03868951,6.94e-05,2]
[360810785,1747034767383,993.0133227,8e-05,2]
[360810787,1747034788051,159.76,0.00012527,2]
[360810788,1747034788247,159.76,0.0001253,2]
[360810789,1747034788449,159.76,0.00012534,2]
[360810790,1747034788701,159.76,0.00012537,2]
[360810791,1747034788863,159.76,0.0001254,2]
[360810792,1747034789053,159.76,0.00012544,2]
[360810793,1747034789261,159.76,0.00012547,2]
[360810795,1747034844276,600.0,0.000137,5]
[360810796,1747034846384,600.0,0.000138,5]
[360810797,1747034848840,600.0,0.000139,5]
[360810798,1747034860710,-159.76,0.0001255,2]
[360810799,1747034869960,92.24,0.0001227,2]
[360810800,1747034869988,557.42,0.0001227,2]
[360810801,1747034876019,20830.13093969,0.00013,15]
[360810802,1747034882598,-159.76,0.00012553,2]
[360810803,1747034882623,-141.19281803,0.00012557,2]
[360810804,1747034898185,-18.56718197,0.00012557,2]
[360810805,1747034898209,-159.76,0.0001256,2]
[360810806,1747034899762,56.36587552,0.000125,2]
[360810807,1747034899785,241.31602144,0.000125,2]
[360810808,1747034902450,150.0,0.00012277,2]
[360810809,1747034906948,1870.85006395,0.0001,2]
[360810810,1747034908960,379.37703833,7.888e-05,2]
[360810811,1747034915653,216.87583761,0.0001,2]
[360810812,1747034933451,1000.0,0.00012241,2]
[360810822,1747035010137,132.24757813,0.00012472,2]
[360810823,1747035010165,23.14501277,0.00012472,2]
[360810838,1747035032264,-159.76,0.00012563,2]
[360810839,1747035032276,-159.76,0.00012567,2]
[360810841,1747035032286,-159.76,0.0001257,2]
[360810843,1747035032297,-445.40244352,0.00012571,2]
[360810846,1747035032473,-754.59755648,0.00012571,2]
[360810847,1747035032483,-150.0,0.00012571,2]
[360810848,1747035032493,-300.0,0.00012571,2]
[360810849,1747035032504,-500.0,0.00012572,2]
[360810850,1747035032514,-500.0,0.00012572,2]
[360810851,1747035032524,-500.0,0.00012572,2]
[360810852,1747035032534,-500.0,0.00012572,2]
[360810853,1747035032543,-500.0,0.00012572,2]
[360810854,1747035032553,-500.0,0.00012572,2]
[360810855,1747035032564,-500.0,0.00012572,2]
[360810856,1747035032574,-500.0,0.00012572,2]
[360810857,1747035032583,-500.0,0.00012572,2]
[360810858,1747035032593,-500.0,0.00012572,2]
[360810859,1747035032603,-500.0,0.00012572,2]
[360810860,1747035032612,-500.0,0.00012572,2]
[360810861,1747035032622,-513.2267307,0.00012572,2]
[360810862,1747035032632,-500.0,0.00012572,2]
[360810863,1747035032642,-500.0,0.00012572,2]
[360810864,1747035032651,-500.0,0.00012572,2]
[360810865,1747035032661,-500.0,0.00012572,2]
[360810866,1747035032670,-500.0,0.00012572,2]
[360810867,1747035032680,-500.0,0.00012572,2]
[360810868,1747035032692,-500.0,0.00012572,2]
[360810869,1747035032701,-350.0,0.00012572,2]
[360810870,1747035032711,-500.0,0.00012572,2]
[360810871,1747035032721,-500.0,0.00012572,2]
[360810872,1747035032731,-500.0,0.00012572,2]
[360810873,1747035032741,-500.0,0.00012572,2]
[360810874,1747035032755,-500.0,0.00012572,2]
[360810875,1747035032765,-500.0,0.00012572,2]
[360810876,1747035032777,-159.76,0.00012573,2]
[360810877,1747035032787,-159.76,0.00012576,2]
[360810878,1747035032798,-159.76,0.0001258,2]
[360810879,1747035032807,-159.76,0.00012583,2]
[360810880,1747035032816,-159.76,0.00012586,2]
[360810881,1747035032825,-222.87571282,0.00012587,2]
[360810882,1747035032837,-115.66249597,0.00012587,2]
[360810883,1747035032847,-237.86630591,0.00012588,2]
[360810884,1747035032856,-242.97167253,0.00012588,2]
[360810885,1747035032866,-228.04851164,0.00012588,2]
[360810886,1747035032875,-128.44144726,0.00012588,2]
[360810887,1747035032906,-70.21790597,0.00012588,2]
[360810888,1747035032915,-159.76,0.0001259,2]
[360810889,1747035032924,-4000.0,0.0001264,2]
[360810890,1747035032933,-23900.0,0.00012659,2]
[360810891,1747035032942,-2514.0,0.00012667,2]
[360810892,1747035032951,-434.33,0.00012681,2]
[360810893,1747035032960,-534.48,0.00012687,2]
[360810894,1747035032969,-161.61,0.00012752,2]
[360810895,1747035032980,-155.3925909,0.00012836,2]
[360810896,1747035032990,-576.06,0.00012901,2]
[360810897,1747035033002,-207.4,0.00012908,2]
[360810898,1747035033011,-166.58,0.00013005,2]
[360810899,1747035033021,-155.3925909,0.000132,2]
[360810900,1747035033030,-600.0,0.000132,4]
[360810901,1747035033040,-1781.0,0.00013229,2]
[360810902,1747035033050,-1161.0,0.00013295,2]
[360810903,1747035033059,-312.86,0.000133,2]
[360810904,1747035033069,-1156.1,0.000133,2]
[360810905,1747035033078,-162.5,0.000133,2]
[360810906,1747035033089,-1200.0,0.000133,4]
[360810907,1747035033098,-961.25427466,0.00013334,2]
[360810908,1747035033108,-961.25427466,0.00013334,2]
[360810909,1747035033117,-1915.0,0.0001336,2]
[360810910,1747035033126,-1900.0,0.000134,4]
[360810911,1747035033135,-1190.0,0.00013426,2]
[360810912,1747035033145,-1150.0,0.00013492,2]
[360810913,1747035033154,-4302.61954425,0.00013498,2]
[360810914,1747035033163,-3066.52447784,0.00013498,2]
[360810915,1747035033175,-286.37962216,0.00013498,2]
[360810916,1747035033185,-226.6915,0.00013498,2]
[360810917,1747035033194,-11893.518,0.00013498,2]
[360810918,1747035033204,-2500.0,0.000135,4]
[360810919,1747035033213,-805.34125131,0.000135,2]
[360810920,1747035033223,-1880.0,0.000135,2]
[360810921,1747035033233,-202.49136499,0.00013509,2]
[360810922,1747035033244,-4100.12817921,0.00013509,2]
[360810923,1747035033257,-3505.0432463,0.0001352,2]
[360810941,1747035033482,-797.5762979,0.0001352,2]
[360810944,1747035033509,-2920.67424563,0.00013531,2]
[360810946,1747035033523,-845.72788746,0.00013531,2]
[360810948,1747035033536,-387.13222533,0.00013531,2]
[360810950,1747035033548,-149.08518578,0.00013531,2]
[360810952,1747035033561,-2316.25145209,0.00013542,2]
[360810954,1747035033574,-1986.36809211,0.00013542,2]
[360810956,1747035033584,-625.25635471,0.0001355,2]
[360810962,1747035033645,-72.83414529,0.0001355,2]
[360810964,1747035033655,-4302.6195442,0.00013554,2]
[360810966,1747035033665,-2649.55196,0.0001356,2]
[360810968,1747035033675,-4302.6195442,0.00013565,2]
[360810970,1747035033686,-625.83964709,0.00013575,2]
[360810972,1747035033696,-4302.6195442,0.00013576,2]
[360810974,1747035033706,-930.0,0.00013577,2]
[360810976,1747035033716,-4302.6195442,0.00013587,2]
[360810978,1747035033726,-200.0,0.00013588,2]
[360810980,1747035033735,-668.65185757,0.0001359,2]
[360810982,1747035033746,-1172.35275491,0.00013598,2]
[360810984,1747035033765,-4302.6195442,0.00013598,2]
[360810986,1747035033776,-298.22104339,0.00013598,2]
[360810987,1747035033786,-13608.99712186,0.00013598,2]
[360810990,1747035033799,-2571.79212204,0.00013598,2]
[360811018,1747035038906,-531.63683674,0.00013598,2]
[360811019,1747035038918,-1286.03515245,0.00013598,2]
[360811020,1747035038927,-615.20530003,0.00013598,2]
[360811021,1747035038936,-194.70825988,0.00013598,2]
[360811022,1747035038948,-12511.9526946,0.00013598,2]
[360811023,1747035038960,-2626.03769705,0.00013598,2]
[360811024,1747035038981,-3279.73300446,0.00013598,2]
[360811025,1747035039006,-631.14144959,0.00013598,2]
[360811026,1747035039062,-2562.6,0.00013598,2]
[360811027,1747035039238,-2485.1244597,0.00013598,2]
[360811028,1747035039251,-5310.1000048,0.00013598,2]
[360811029,1747035039264,-1469.88841673,0.00013598,2]
[360811044,1747035040565,-4029.0,0.00013577,2]
[360811045,1747035040576,-49713.48277307,0.00013598,2]
[360811046,1747035040585,-580.6957,0.00013598,2]
[360811047,1747035040596,-621.9567,0.00013598,2]
[360811048,1747035040606,-1054.4445,0.00013598,2]
[360811049,1747035040616,-12500.0,0.000136,2]
[360811050,1747035040625,-1554.0,0.000136,2]
[360811051,1747035040635,-3200.0,0.000136,4]
[360811052,1747035040646,-460.8678358,0.00013629,2]
[360811053,1747035040655,-1892.0,0.00013636,2]
[360811054,1747035040667,-12229.57007871,0.0001365,2]
[360811055,1747035040677,-206.217789,0.00013655,2]
[360811056,1747035040687,-255.0,0.00013665,2]
[360811057,1747035040696,-500.0,0.00013673,2]
[360811058,1747035040706,-500.0,0.00013673,2]
[360811059,1747035040716,-500.0,0.00013673,2]
[360811060,1747035040726,-500.0,0.00013673,2]
[360811061,1747035040736,-500.0,0.00013673,2]
[360811062,1747035040746,-500.0,0.00013673,2]
[360811063,1747035040759,-500.0,0.00013695,2]
[360811064,1747035040769,-316.54029767,0.00013697,2]
[360811065,1747035040784,-151.0,0.00013698,2]
[360811066,1747035040795,-477.32761948,0.00013698,2]
[360811067,1747035040805,-227.119868,0.00013698,2]
[360811068,1747035040815,-154.770811,0.00013698,2]
[360811069,1747035040824,-186.137468,0.00013698,2]
[360811070,1747035040835,-186.137468,0.00013698,2]
[360811071,1747035040845,-186.137468,0.00013698,2]
[360811072,1747035040856,-186.137468,0.00013698,2]
[360811073,1747035040866,-186.137468,0.00013698,2]
[360811074,1747035040875,-186.137468,0.00013698,2]
[360811075,1747035040885,-186.137468,0.00013698,2]
[360811076,1747035040894,-186.137468,0.00013698,2]
[360811077,1747035040903,-186.137468,0.00013698,2]
[360811078,1747035040912,-186.137468,0.00013698,2]
[360811079,1747035040922,-186.137468,0.00013698,2]
[360811080,1747035040931,-186.137468,0.00013698,2]
[360811081,1747035040941,-186.137468,0.00013698,2]
[360811082,1747035040951,-186.137468,0.00013698,2]
[360811083,1747035040960,-186.137468,0.00013698,2]
[360811084,1747035040970,-186.137468,0.00013698,2]
[360811085,1747035040979,-186.137468,0.00013698,2]
[360811086,1747035040989,-186.137468,0.00013698,2]
[360811087,1747035040998,-186.137468,0.00013698,2]
[360811088,1747035041010,-186.137468,0.00013698,2]
[360811089,1747035041020,-430.721647,0.00013698,2]
[360811090,1747035041030,-430.721647,0.00013698,2]
[360811091,1747035041040,-430.721647,0.00013698,2]
[360811092,1747035041049,-430.721647,0.00013698,2]
[360811093,1747035041059,-430.721647,0.00013698,2]
[360811094,1747035041069,-430.721647,0.00013698,2]
[360811095,1747035041079,-430.721647,0.00013698,2]
[360811096,1747035041088,-430.721647,0.00013698,2]
[360811097,1747035041098,-430.721647,0.00013698,2]
[360811098,1747035041107,-430.721647,0.00013698,2]
[360811099,1747035041120,-430.721647,0.00013698,2]
[360811100,1747035041133,-430.721647,0.00013698,2]
[360811101,1747035041143,-430.721647,0.00013698,2]
[360811102,1747035041153,-430.721647,0.00013698,2]
[360811103,1747035041162,-430.721647,0.00013698,2]
[360811105,1747035041172,-430.721647,0.00013698,2]
[360811106,1747035041181,-430.721647,0.00013698,2]
[360811107,1747035041190,-430.721647,0.00013698,2]
[360811108,1747035041201,-430.721647,0.00013698,2]
[360811109,1747035041211,-430.721647,0.00013698,2]
[360811110,1747035041221,-150.0,0.00013698,2]
[360811111,1747035041231,-749.85019308,0.00013698,2]
[360811112,1747035041242,-150.0,0.00013698,2]
[360811113,1747035041251,-150.0,0.00013698,2]
[360811114,1747035041263,-150.0,0.00013698,2]
[360811115,1747035041274,-2499.37973995,0.00013698,2]
[360811116,1747035041284,-3900.31708596,0.00013698,2]
[360811117,1747035041294,-150.0,0.00013698,2]
[360811118,1747035041304,-3461.78403015,0.00013698,2]
[360811119,1747035041314,-11869.68559736,0.00013698,2]
[360811120,1747035041323,-259.24433577,0.00013698,2]
[360811121,1747035041333,-493.41469418,0.00013698,2]
[360811122,1747035041343,-338.33,0.00013698,2]
[360811123,1747035041352,-400.0,0.00013698,2]
[360811124,1747035041363,-410.5798992,0.00013698,2]
[360811126,1747035041372,-400.0,0.00013698,2]
[360811128,1747035041381,-275.90309253,0.00013698,2]
[360811130,1747035041391,-400.0,0.00013698,2]
[360811131,1747035041401,-400.0,0.00013698,2]
[360811132,1747035041410,-392.0,0.00013698,2]
[360811133,1747035041419,-400.0,0.00013698,2]
[360811134,1747035041429,-398.43815664,0.00013698,2]
[360811135,1747035041439,-453.67860066,0.00013698,2]
[360811136,1747035041449,-400.0,0.00013698,2]
[360811137,1747035041464,-322.31728151,0.00013698,2]
[360811138,1747035041486,-400.0,0.00013698,2]
[360811139,1747035041495,-416.50013277,0.00013698,2]
[360811140,1747035041505,-160.2928541,0.00013698,2]
[360811141,1747035041518,-400.0,0.00013698,2]
[360811142,1747035041528,-419.19245018,0.00013698,2]
[360811143,1747035041541,-400.0,0.00013698,2]
[360811144,1747035041550,-406.14296315,0.00013698,2]
[360811145,1747035041560,-400.0,0.00013698,2]
[360811146,1747035041570,-400.0,0.00013698,2]
[360811147,1747035041580,-400.0,0.00013698,2]
[360811148,1747035041590,-430.59492441,0.00013698,2]
[360811149,1747035041600,-400.0,0.00013698,2]
[360811150,1747035041610,-420.68255936,0.00013698,2]
[360811151,1747035041620,-479.93318134,0.00013698,2]
[360811152,1747035041629,-2176.064,0.00013698,2]
[360811153,1747035041639,-400.0,0.00013698,2]
[360811154,1747035041649,-400.0,0.00013698,2]
[360811155,1747035041658,-461.17,0.00013698,2]
[360811156,1747035041668,-1355.36,0.00013698,2]
[360811157,1747035041678,-1355.36,0.00013698,2]
[360811158,1747035041687,-1355.36,0.00013698,2]
[360811159,1747035041697,-1355.36,0.00013698,2]
[360811160,1747035041706,-1355.36,0.00013698,2]
[360811161,1747035041716,-1355.36,0.00013698,2]
[360811162,1747035041725,-1355.36,0.00013698,2]
[360811163,1747035041735,-1355.36,0.00013698,2]
[360811164,1747035041744,-1355.36,0.00013698,2]
[360811165,1747035041754,-1355.36,0.00013698,2]
[360811166,1747035041770,-1355.36,0.00013698,2]
[360811167,1747035041780,-364.44,0.00013698,2]
[360811168,1747035041790,-1355.36,0.00013698,2]
[360811169,1747035041800,-1355.36,0.00013698,2]
[360811170,1747035041811,-1355.36,0.00013698,2]
[360811171,1747035041820,-400.0,0.00013698,2]
[360811172,1747035041830,-1355.36,0.00013698,2]
[360811173,1747035041841,-400.0,0.00013698,2]
[360811174,1747035041851,-400.0,0.00013698,2]
[360811175,1747035041862,-1355.36,0.00013698,2]
[360811176,1747035041871,-400.0,0.00013698,2]
[360811177,1747035041880,-1355.36,0.00013698,2]
[360811178,1747035041890,-444.17,0.00013698,2]
[360811179,1747035042129,-1355.36,0.00013698,2]
[360811180,1747035042139,-1355.36,0.00013698,2]
[360811181,1747035042148,-1355.36,0.00013698,2]
[360811182,1747035042158,-1355.36,0.00013698,2]
[360811183,1747035042167,-1355.36,0.00013698,2]
[360811184,1747035042177,-1355.36,0.00013698,2]
[360811185,1747035042186,-1355.55152827,0.00013698,2]
[360811186,1747035042195,-1879.3,0.00013698,2]
[360811187,1747035042206,-1879.3,0.00013698,2]
[360811188,1747035042215,-1879.3,0.00013698,2]
[360811189,1747035042224,-1879.3,0.00013698,2]
[360811190,1747035042234,-1879.3,0.00013698,2]
[360811191,1747035042243,-1879.3,0.00013698,2]
[360811192,1747035042253,-1879.3,0.00013698,2]
[360811193,1747035042264,-1879.3,0.00013698,2]
[360811194,1747035042274,-1879.3,0.00013698,2]
[360811195,1747035042283,-1879.3,0.00013698,2]
[360811196,1747035042292,-1879.3,0.00013698,2]
[360811197,1747035042302,-1879.3,0.00013698,2]
[360811198,1747035042311,-1879.3,0.00013698,2]
[360811199,1747035042321,-1879.3,0.00013698,2]
[360811200,1747035042330,-1879.3,0.00013698,2]
[360811201,1747035042339,-1879.3,0.00013698,2]
[360811202,1747035042348,-1879.3,0.00013698,2]
[360811203,1747035042358,-1879.3,0.00013698,2]
[360811204,1747035042367,-1879.3,0.00013698,2]
[360811205,1747035042376,-1879.3,0.00013698,2]
[360811206,1747035042386,-1879.3,0.00013698,2]
[360811207,1747035042395,-1879.3,0.00013698,2]
[360811208,1747035042404,-1879.3,0.00013698,2]
[360811209,1747035042413,-1879.49745113,0.00013698,2]
[360811210,1747035042422,-400.0,0.00013698,2]
[360811211,1747035042432,-400.0,0.00013698,2]
[360811212,1747035042441,-400.0,0.00013698,2]
[360811213,1747035042451,-400.0,0.00013698,2]
[360811214,1747035042460,-400.0,0.00013698,2]
[360811215,1747035042471,-400.0,0.00013698,2]
[360811216,1747035042480,-400.0,0.00013698,2]
[360811217,1747035042489,-400.0,0.00013698,2]
[360811218,1747035042499,-400.0,0.00013698,2]
[360811219,1747035042511,-400.0,0.00013698,2]
[360811220,1747035042520,-400.0,0.00013698,2]
[360811221,1747035042530,-400.0,0.00013698,2]
[360811222,1747035042540,-400.0,0.00013698,2]
[360811223,1747035042549,-400.0,0.00013698,2]
[360811224,1747035042562,-400.0,0.00013698,2]
[360811225,1747035042572,-400.0,0.00013698,2]
[360811226,1747035042586,-400.0,0.00013698,2]
[360811227,1747035042595,-534.29821271,0.00013698,2]
[360811228,1747035042605,-779.1,0.00013698,2]
[360811229,1747035042615,-779.1,0.00013698,2]
[360811230,1747035042624,-779.1,0.00013698,2]
[360811231,1747035042635,-779.1,0.00013698,2]
[360811232,1747035042646,-779.1,0.00013698,2]
[360811233,1747035042656,-779.1,0.00013698,2]
[360811234,1747035042665,-779.1,0.00013698,2]
[360811235,1747035042675,-779.1,0.00013698,2]
[360811236,1747035042684,-779.1,0.00013698,2]
[360811237,1747035042694,-779.1,0.00013698,2]
[360811238,1747035042703,-779.1,0.00013698,2]
[360811239,1747035042713,-779.1,0.00013698,2]
[360811240,1747035042722,-779.1,0.00013698,2]
[360811241,1747035042732,-779.1,0.00013698,2]
[360811242,1747035042742,-779.1,0.00013698,2]
[360811243,1747035042751,-779.1,0.00013698,2]
[360811244,1747035042764,-779.1,0.00013698,2]
[360811245,1747035042775,-779.1,0.00013698,2]
[360811246,1747035042785,-779.1,0.00013698,2]
[360811247,1747035042794,-779.1,0.00013698,2]
[360811248,1747035042803,-779.1,0.00013698,2]
[360811249,1747035042813,-779.1,0.00013698,2]
[360811250,1747035042822,-779.1,0.00013698,2]
[360811251,1747035042831,-779.30875895,0.00013698,2]
[360811252,1747035042841,-1947.15,0.00013698,2]
[360811253,1747035042854,-1947.15,0.00013698,2]
[360811254,1747035042864,-1947.15,0.00013698,2]
[360811255,1747035042873,-1947.15,0.00013698,2]
[360811256,1747035042885,-1947.15,0.00013698,2]
[360811257,1747035042898,-1947.15,0.00013698,2]
[360811258,1747035042909,-400.0,0.00013698,2]
[360811259,1747035042918,-1947.15,0.00013698,2]
[360811260,1747035042927,-400.0,0.00013698,2]
[360811261,1747035042936,-1947.15,0.00013698,2]
[360811262,1747035042945,-298.0,0.00013698,2]
[360811263,1747035042955,-1947.15,0.00013698,2]
[360811264,1747035042965,-1947.15,0.00013698,2]
[360811265,1747035042975,-1947.15,0.00013698,2]
[360811266,1747035042985,-1947.15,0.00013698,2]
[360811267,1747035042995,-1947.15,0.00013698,2]
[360811268,1747035043005,-1947.15,0.00013698,2]
[360811269,1747035043018,-1947.15,0.00013698,2]
[360811270,1747035043027,-1947.15,0.00013698,2]
[360811271,1747035043036,-1947.15,0.00013698,2]
[360811272,1747035043045,-1947.15,0.00013698,2]
[360811273,1747035043056,-1947.15,0.00013698,2]
[360811274,1747035043065,-1947.15,0.00013698,2]
[360811275,1747035043074,-1947.15,0.00013698,2]
[360811276,1747035043084,-1947.15,0.00013698,2]
[360811277,1747035043093,-1947.15,0.00013698,2]
[360811278,1747035043103,-1947.29,0.00013698,2]
[360811279,1747035043114,-151.0,0.00013698,2]
[360811281,1747035043123,-400.0,0.00013698,2]
[360811282,1747035043133,-400.0,0.00013698,2]
[360811283,1747035043143,-487.39,0.00013698,2]
[360811284,1747035043151,-400.0,0.00013698,2]
[360811285,1747035043160,-400.0,0.00013698,2]
[360811286,1747035043170,-400.0,0.00013698,2]
[360811287,1747035043179,-1138.3,0.00013698,2]
[360811288,1747035043189,-400.0,0.00013698,2]
[360811289,1747035043198,-1138.3,0.00013698,2]
[360811290,1747035043207,-400.0,0.00013698,2]
[360811291,1747035043216,-1138.3,0.00013698,2]
[360811292,1747035043225,-400.0,0.00013698,2]
[360811293,1747035043235,-1138.3,0.00013698,2]
[360811294,1747035043244,-1138.3,0.00013698,2]
[360811295,1747035043253,-1138.3,0.00013698,2]
[360811296,1747035043265,-1138.3,0.00013698,2]
[360811297,1747035043276,-1138.3,0.00013698,2]
[360811298,1747035043285,-1138.3,0.00013698,2]
[360811299,1747035043295,-1138.3,0.00013698,2]
[360811300,1747035043304,-1138.3,0.00013698,2]
[360811301,1747035043314,-1138.3,0.00013698,2]
[360811302,1747035043323,-1138.3,0.00013698,2]
[360811303,1747035043333,-1138.3,0.00013698,2]
[360811304,1747035043342,-1138.3,0.00013698,2]
[360811305,1747035043351,-1138.3,0.00013698,2]
[360811306,1747035043360,-1138.3,0.00013698,2]
[360811307,1747035043370,-1138.3,0.00013698,2]
[360811308,1747035043379,-1138.3,0.00013698,2]
[360811309,1747035043388,-1138.3,0.00013698,2]
[360811310,1747035043398,-400.0,0.00013698,2]
[360811311,1747035043407,-1138.3,0.00013698,2]
[360811312,1747035043417,-1138.3,0.00013698,2]
[360811313,1747035043426,-400.0,0.00013698,2]
[360811314,1747035043436,-400.0,0.00013698,2]
[360811315,1747035043446,-400.0,0.00013698,2]
[360811316,1747035043456,-400.0,0.00013698,2]
[360811317,1747035043466,-400.0,0.00013698,2]
[360811318,1747035043475,-1138.3,0.00013698,2]
[360811319,1747035043485,-400.0,0.00013698,2]
[360811320,1747035043495,-1138.44,0.00013698,2]
[360811321,1747035043504,-400.0,0.00013698,2]
[360811322,1747035043516,-400.0,0.00013698,2]
[360811323,1747035043525,-177.88,0.00013698,2]
[360811324,1747035043535,-400.0,0.00013698,2]
[360811325,1747035043544,-400.0,0.00013698,2]
[360811326,1747035043554,-400.0,0.00013698,2]
[360811327,1747035043563,-400.0,0.00013698,2]
[360811328,1747035043572,-400.0,0.00013698,2]
[360811329,1747035043581,-400.0,0.00013698,2]
[360811330,1747035043591,-259.39750801,0.00013698,2]
[360811331,1747035043600,-400.0,0.00013698,2]
[360811332,1747035043610,-210.67236073,0.00013698,2]
[360811333,1747035043619,-400.0,0.00013698,2]
[360811334,1747035043629,-400.0,0.00013698,2]
[360811335,1747035043638,-400.0,0.00013698,2]
[360811336,1747035043649,-532.70975742,0.00013698,2]
[360811337,1747035043658,-400.0,0.00013698,2]
[360811338,1747035043667,-177.02822086,0.00013698,2]
[360811339,1747035043677,-318.20769915,0.00013698,2]
[360811340,1747035043686,-400.0,0.00013698,2]
[360811341,1747035043695,-412.27,0.00013698,2]
[360811342,1747035043704,-400.0,0.00013698,2]
[360811343,1747035043714,-400.0,0.00013698,2]
[360811344,1747035043723,-412.27,0.00013698,2]
[360811345,1747035043732,-400.0,0.00013698,2]
[360811346,1747035043742,-412.27,0.00013698,2]
[360811347,1747035043752,-400.0,0.00013698,2]
[360811348,1747035043765,-412.27,0.00013698,2]
[360811349,1747035043776,-530.18658451,0.00013698,2]
[360811350,1747035043786,-412.27,0.00013698,2]
[360811351,1747035043796,-412.27,0.00013698,2]
[360811352,1747035043806,-412.27,0.00013698,2]
[360811353,1747035043816,-412.27,0.00013698,2]
[360811354,1747035043826,-412.27,0.00013698,2]
[360811355,1747035043835,-412.27,0.00013698,2]
[360811356,1747035043845,-400.0,0.00013698,2]
[360811357,1747035043855,-412.27,0.00013698,2]
[360811358,1747035043866,-412.27,0.00013698,2]
[360811359,1747035043875,-412.27,0.00013698,2]
[360811360,1747035043885,-412.27,0.00013698,2]
[360811361,1747035043895,-412.27,0.00013698,2]
[360811362,1747035043904,-412.27,0.00013698,2]
[360811363,1747035043913,-412.27,0.00013698,2]
[360811364,1747035043923,-400.0,0.00013698,2]
[360811365,1747035043932,-400.0,0.00013698,2]
[360811366,1747035043943,-412.27,0.00013698,2]
[360811367,1747035043952,-412.27,0.00013698,2]
[360811368,1747035043961,-412.27,0.00013698,2]
[360811369,1747035043971,-412.27,0.00013698,2]
[360811370,1747035043980,-412.27,0.00013698,2]
[360811371,1747035043990,-412.27,0.00013698,2]
[360811372,1747035044000,-412.46480098,0.00013698,2]
[360811373,1747035044012,-400.0,0.00013698,2]
[360811374,1747035044022,-400.0,0.00013698,2]
[360811375,1747035044032,-400.0,0.00013698,2]
[360811376,1747035044041,-400.0,0.00013698,2]
[360811377,1747035044050,-400.0,0.00013698,2]
[360811378,1747035044059,-400.0,0.00013698,2]
[360811379,1747035044069,-400.0,0.00013698,2]
[360811380,1747035044079,-400.0,0.00013698,2]
[360811381,1747035044088,-400.0,0.00013698,2]
[360811382,1747035044097,-414.15769444,0.00013698,2]